[Event "Magistral Punta del Este 2025"]
[Site "Punta Ballena Maldonado"]
[Date "2025.03.15"]
[Round "2.3"]
[White "Mareco, Sandro"]
[Black "Cuenca Jimenez, Jose Fernando"]
[Result "1-0"]
[Annotator "ChessBase"]
[ECO "D35"]
[WhiteElo "2591"]
[BlackElo "2479"]
[PlyCount "48"]
[EventDate "2025.03.13"]
[EventType "tourn"]
[EventCountry "URU"]
[SourceTitle "playchess.com"]
[Source "ChessBase"]
[SourceQuality "1"]
[TimeControl "5400+30"]

1. d4 {[%emt 0:00:03]} Nf6 {[%emt 0:00:35]} 2. c4 {[%emt 0:00:05]} e6 {[%emt 0:00:36]} 3. Nc3 {[%emt 0:00:05]} d5 {[%emt 0:02:39]} 4. cxd5 {[%emt 0:00:10]} exd5 {[%emt 0:00:45]} 5. Bg5 {[%emt 0:00:07]} Bb4 {[%emt 0:01:25]} 6. e3 {[%emt 0:05:07]} h6 {[%emt 0:01:15]} 7. Bh4 {[%emt 0:00:05]} g5 {[%emt 0:00:42]} 8. Bg3 {[%emt 0:00:06]} h5 {[%emt 0:00:21]} 9. Qb3 {[%emt 0:10:36]} c5 {[%emt 0:23:21]} 10. dxc5 {[%emt 0:04:18]} Nc6 {[%emt 0:02:32]} 11. O-O-O {[%emt 0:03:04]} Be6 {[%emt 0:12:25]} 12. Nf3 {[%emt 0:00:20]} h4 {[%emt 0:05:42]} 13. Bd6 {[%emt 0:05:41]} d4 {[%emt 0:02:57]} 14. Bc4 {[%emt 0:00:09]} Bxc4 {[%emt 0:00:51]} 15. Qxc4 {[%emt 0:00:05]} dxc3 {[%emt 0:00:07]} 16. Nxg5 {[%emt 0:01:52]} cxb2+ {[%emt 0:08:29]} 17. Kxb2 {[%emt 0:00:23]} Qd7 {[%emt 0:01:08]} 18. Qf4 {[%emt 0:12:34]} Rh6 {[%emt 0:08:17]} 19. Bf8 {[%emt 0:00:10]} Qg4 {[%emt 0:17:13]} 20. Bxh6 {[%emt 0:05:11]} Qe2+ {[%emt 0:00:04]} 21. Kb3 {[%emt 0:00:12]} Bxc5 {[%emt 0:08:07]} 22. Qxf6 {[%emt 0:04:47]} Qb5+ {[%emt 0:00:03]} 23. Kc2 {[%emt 0:00:05]} Nb4+ {[%emt 0:00:26]} 24. Kb1 {[%emt 0:47:15]} Nc6+ 1-0